bitfinex-derivatives/quotes_ETHF0:USTF0_20250531
["timestamp","ask_amount","ask_price","bid_price","bid_amount"]
[1748713232871,3.33162,2538.5,2538.4,0.78753]
[1748713232872,3.3316,2538.5,2538.4,0.78753]
[1748713233065,25.1216,2538.5,2538.4,0.78753]
[1748713233364,3.3316,2538.5,2538.4,0.78753]
[1748713233569,3.796,2538.5,2538.4,0.78753]
[1748713233763,0.96393905,2538.8,2538.4,1.96884]
[1748713233968,3.796,2538.6,2538.5,1.3563]
[1748713234165,3.796,2538.6,2538.5,2.1438]
[1748713234571,0.6544,2538.9,2538.8,0.78741]
[1748713234871,22.4604,2538.9,2538.8,0.78741]
[1748713235069,22.4604,2538.9,2538.7,0.78742]
[1748713235368,22.4604,2538.9,2538.7,2.14372]
[1748713235971,23.2478,2538.9,2538.7,2.14372]
[1748713236170,0.78741,2538.8,2538.7,2.14372]
[1748713238069,5.30935339,2538.9,2538.8,0.78741]
[1748713238268,23.31335339,2538.9,2538.8,1.3243]
[1748713239070,0.78744,2538.7,2538.6,1.42465]
[1748713239370,18.78844,2538.7,2538.6,2.74895]
[1748713239570,18.78844,2538.7,2538.6,1.9615]
[1748713239968,0.78747,2538.6,2538.5,2.3572347]
[1748713240173,2.79277,2538.6,2538.5,2.3572347]
[1748713241167,2.79277,2538.6,2538.5,0.7875]
[1748713241366,1.44627,2538.6,2538.5,0.7875]
[1748713241569,0.7875,2538.5,2538.4,2.3572347]
[1748713241771,4.6165,2538.5,2538.4,2.3572347]
[1748713242675,5.9395,2538.5,2538.4,2.3572347]
[1748713243276,0.78753,2538.4,2538.3,0.78756]
[1748713243467,0.78753,2538.4,2538.3,2.02856]
[1748713246279,0.78753,2538.4,2538.3,0.78756]
[1748713246579,0.78753,2538.4,2538.2,0.66941716]
[1748713246580,0.78756,2538.3,2538.2,0.79349716]
[1748713246779,1.44126,2538.3,2538.2,0.79349716]
[1748713246982,0.6537,2538.3,2538.2,0.00591716]
[1748713247277,0.6537,2538.3,2538.2,1.26981716]
[1748713247480,3.829,2538.5,2538.2,1.26981716]
[1748713247779,0.6537,2538.4,2538.3,0.78763]
[1748713247982,22.4857,2538.4,2538.3,0.78763]
[1748713248481,22.4857,2538.4,2538.2,1.26981716]
[1748713251881,4.4827,2538.4,2538.2,1.26981716]
[1748713252081,18.06655339,2538.3,2538.2,1.26981716]
[1748713252380,0.07155339,2538.3,2538.2,1.26981716]
[1748713252581,18.06455339,2538.3,2538.2,1.26981716]
[1748713253180,17.993,2538.3,2538.2,1.26981716]
[1748713255582,0.6537,2538.4,2538.2,1.26981716]
[1748713255886,20.55354,2538.3,2538.2,2.05741716]
[1748713256086,19.54296,2538.3,2538.2,2.05741716]
[1748713256279,1.2734,2539.0,2538.9,0.78738]
[1748713256482,23.7819,2539.0,2538.9,0.78738]
[1748713256676,0.00591716,2539.1,2539.0,0.78735]
[1748713256881,21.83691716,2539.1,2539.0,0.78735]
[1748713257681,21.83491716,2539.1,2539.0,0.78735]
[1748713258085,21.83491716,2539.1,2538.9,2.74027]
[1748713258887,0.96588775,2539.0,2538.9,1.9529]
[1748713259090,0.96588775,2539.0,2538.9,0.78738]
[1748713259282,2.26798775,2539.0,2538.8,0.78739]
[1748713259487,2.26798775,2539.0,2538.7,3.2078]
[1748713259686,2.26798775,2539.0,2538.4,6.3525547]
[1748713259687,1.3021,2538.9,2538.4,6.3525547]
[1748713259989,0.78745,2538.7,2538.5,0.78749]
[1748713260190,0.78745,2538.7,2538.4,5.5650347]
[1748713260191,3.829,2538.6,2538.4,5.5650347]
[1748713260383,3.829,2538.6,2538.5,0.7875]
[1748713260889,4.61647,2538.6,2538.5,0.7875]
[1748713261090,4.61648,2538.6,2538.4,3.2078]
[1748713261292,3.829,2538.6,2538.5,0.7875]
[1748713262088,4.61647,2538.6,2538.5,0.7875]
[1748713262285,0.7875,2538.5,2538.4,5.25482]
[1748713262591,4.61649,2538.6,2538.5,0.7875]
[1748713264388,0.7875,2538.5,2538.4,5.25482]
[1748713265494,0.7875,2538.5,2538.4,2.04702]
[1748713266704,0.78753,2538.4,2538.3,3.8374]
[1748713267506,0.78753,2538.4,2538.3,4.62496]
[1748713268696,0.78756,2538.3,2538.2,2.36315186]
[1748713268901,18.79356,2538.3,2538.2,2.36315186]
[1748713271008,18.79356,2538.3,2538.2,0.00591716]
[1748713273008,23.23886,2538.3,2538.2,0.00591716]
[1748713275413,24.20652193,2538.3,2538.2,0.00591716]
[1748713276610,0.78772,2537.8,2537.7,2.3572347]
[1748713276802,4.61972,2537.8,2537.7,5.0789847]
[1748713277000,21.852,2537.8,2537.7,5.0789847]
[1748713278314,22.63972,2537.8,2537.7,5.0789847]
[1748713279120,22.63972,2537.8,2537.7,1.934]
[1748713280517,22.71127339,2537.8,2537.7,1.934]
[1748713283424,22.63972,2537.8,2537.7,1.934]
[1748713285019,4.61972,2537.8,2537.7,1.934]
[1748713285316,22.62272,2537.8,2537.7,2.72175]
[1748713285518,22.62272,2537.8,2537.7,1.934]
[1748713292325,22.62272,2537.8,2537.7,2.72175]
[1748713292533,22.62272,2537.8,2537.7,1.934]
[1748713294528,22.62272,2537.8,2537.7,2.72175]
[1748713295927,22.60072,2537.8,2537.7,2.72175]
[1748713296425,22.60072,2537.8,2537.7,1.934]
[1748713297034,22.60072,2537.8,2537.7,2.72175]
[1748713297238,22.60072,2537.8,2537.7,1.934]
[1748713300840,22.60072,2537.8,2537.7,2.72175]
[1748713301341,22.60072,2537.8,2537.7,1.934]
[1748713302739,22.56572,2537.8,2537.7,1.934]
[1748713305141,22.56572,2537.8,2537.7,4.2912347]
[1748713308651,0.7877,2537.9,2537.7,4.2912347]
[1748713308848,21.767,2537.8,2537.7,5.0789847]
[1748713309256,21.767,2537.8,2537.7,2.72175]
[1748713310551,3.811,2537.8,2537.7,2.72175]
[1748713310752,22.55372,2537.8,2537.7,2.72175]
[1748713311256,22.55372,2537.8,2537.7,1.934]
[1748713313858,0.78778,2537.6,2537.5,6.98476772]
[1748713314450,0.78778,2537.6,2537.5,6.36286772]
[1748713315149,0.78778,2537.6,2537.5,7.15067772]
[1748713315347,0.78778,2537.6,2537.5,6.36286772]
[1748713315549,0.78778,2537.6,2537.5,4.00152716]
[1748713319958,1.45607,2537.7,2537.6,0.78778]
[1748713320257,19.41107,2537.7,2537.6,0.78778]
[1748713320459,19.41107,2537.7,2537.6,1.42798]
[1748713324267,1.45607,2537.7,2537.6,1.42798]
[1748713324453,19.41105,2537.7,2537.6,1.42798]
[1748713324657,19.41105,2537.7,2537.6,2.73668]
[1748713327161,0.78778,2537.6,2537.5,0.00591716]
[1748713327361,2.10748,2537.6,2537.5,0.00591716]
[1748713328058,0.78787,2537.3,2537.2,3.14915056]
[1748713328259,4.59887,2537.3,2537.2,3.14915056]
[1748713328662,6.64367,2537.3,2537.2,3.14915056]
[1748713329665,6.64367,2537.3,2537.1,4.71394813]
[1748713329666,0.7879,2537.2,2537.1,0.78793]
[1748713329858,2.149,2537.2,2537.1,0.78793]
[1748713330260,0.78794,2537.1,2537.0,2.71206716]
[1748713330459,1.46094,2537.1,2537.0,2.71206716]
[1748713332671,0.673,2537.1,2537.0,2.71206716]
[1748713333169,5.28259,2537.3,2537.2,0.7879]
[1748713333375,5.95069,2537.3,2537.2,0.7879]
[1748713333867,0.7879,2537.2,2537.1,2.03672]
[1748713334067,0.7879,2537.2,2537.1,1.2488]
[1748713334369,0.7879,2537.2,2537.1,2.03674]
[1748713334668,0.7879,2537.2,2537.1,1.2488]
[1748713335071,0.7879,2537.2,2537.1,2.03674]
[1748713335365,0.7879,2537.2,2537.1,1.2488]
[1748713336373,0.78794,2537.1,2537.0,0.65341716]
[1748713337062,0.78794,2537.1,2537.0,1.44138716]
[1748713337472,0.78794,2537.1,2537.0,2.73308716]
[1748713338174,6.4036,2537.3,2537.0,1.94511716]
[1748713338374,0.78794,2537.1,2537.0,2.73306716]
[1748713340076,0.78792,2537.2,2537.1,0.78793]
[1748713341775,0.78792,2537.2,2537.0,1.94511716]
[1748713341776,0.78794,2537.1,2537.0,2.73306716]
[1748713343780,17.958,2537.1,2537.0,2.73306716]
[1748713346083,18.74594,2537.1,2537.0,2.73306716]
[1748713346982,17.958,2537.1,2537.0,2.73306716]
[1748713347582,18.74594,2537.1,2537.0,2.73306716]
[1748713350085,0.78792,2537.2,2537.1,0.78792]
[1748713350283,18.74492,2537.2,2537.1,2.03832]
[1748713350483,0.6681,2537.3,2537.2,0.7879]
[1748713350683,21.759,2537.3,2537.2,2.0383]
[1748713350884,22.54687,2537.3,2537.2,2.0383]
[1748713351788,22.54687,2537.3,2537.2,1.2504]
[1748713352189,0.78787,2537.3,2537.2,1.2504]
[1748713352378,0.78786,2537.4,2537.2,2.0383]
[1748713352583,0.78786,2537.4,2537.3,1.2948]
[1748713352880,0.78786,2537.4,2537.3,1.9437]
[1748713352881,22.54686,2537.4,2537.3,1.9437]
[1748713353287,22.74079812,2537.4,2537.3,1.9437]
[1748713353487,22.54686,2537.4,2537.3,1.9437]
[1748713354390,23.53538506,2537.4,2537.3,1.9437]
[1748713355183,23.72933777,2537.4,2537.3,1.9437]
[1748713355383,23.53538506,2537.4,2537.3,1.9437]
[1748713358895,23.73238506,2537.4,2537.3,1.9437]
[1748713359491,23.73238506,2537.4,2537.2,0.6232]
[1748713359492,0.78787,2537.3,2537.2,0.6232]
[1748713360501,1.77639506,2537.3,2537.2,0.6232]
[1748713360797,0.7879,2537.2,2537.1,0.631]
[1748713360997,0.7879,2537.2,2537.1,1.9328]
[1748713362396,1.77642506,2537.2,2537.1,1.9328]
[1748713363100,1.77642506,2537.2,2537.0,0.00591716]
[1748713363101,0.78794,2537.1,2537.0,0.00591716]
[1748713364496,2.10764,2537.1,2537.0,0.00591716]
[1748713368308,5.31544,2537.1,2537.0,0.00591716]
[1748713368610,6.31454008,2537.1,2537.0,0.00591716]
[1748713369407,6.50837365,2537.1,2537.0,0.00591716]
[1748713369611,6.31454008,2537.1,2537.0,0.00591716]
[1748713370310,11.31454008,2537.1,2537.0,0.00591716]
[1748713371103,10.52660008,2537.1,2536.2,7.02935056]
[1748713371409,0.78818,2536.3,2536.2,6.35695056]
[1748713371609,22.54518,2536.3,2536.2,6.35695056]
[1748713372816,22.54518,2536.3,2536.2,3.2078]
[1748713374210,23.83378,2536.3,2536.2,3.2078]
[1748713374812,0.78825,2536.1,2536.0,1.42017716]
[1748713375018,0.78825,2536.1,2536.0,0.63191716]
[1748713376415,0.78825,2536.1,2536.0,1.42019716]
[1748713377909,0.78825,2536.1,2536.0,0.63191716]
[1748713378412,0.78825,2536.1,2536.0,1.94831716]
[1748713379209,2.59051,2536.4,2536.0,1.94831716]
[1748713379210,3.85921716,2536.5,2536.2,0.7882]
[1748713379410,22.54815,2536.4,2536.3,0.6842]
[1748713381021,22.54815,2536.4,2536.3,1.47238]
[1748713381221,0.78815,2536.4,2536.3,1.47238]
[1748713381417,22.54915,2536.4,2536.3,1.47238]
[1748713381720,22.74527197,2536.4,2536.3,1.47238]
[1748713382015,22.54915,2536.4,2536.3,1.47238]
[1748713382315,22.74527048,2536.4,2536.3,1.47238]
[1748713382516,22.74527088,2536.4,2536.3,1.47238]
[1748713382822,22.54915,2536.4,2536.3,1.47238]
[1748713383619,22.74546686,2536.4,2536.3,1.47238]
[1748713383919,22.54915,2536.4,2536.3,1.47238]
[1748713384316,22.74527492,2536.4,2536.3,1.47238]
[1748713384516,22.54915,2536.4,2536.3,0.6842]
[1748713384721,25.75695,2536.4,2536.3,0.6842]
[1748713385019,25.75695,2536.4,2536.3,2.0328]
[1748713386120,25.95310515,2536.4,2536.3,2.0328]
[1748713386419,25.75695,2536.4,2536.3,2.0328]
[1748713386923,25.75695,2536.4,2536.3,2.10435339]
[1748713387418,3.2078,2536.4,2536.3,2.89253339]
[1748713387619,21.761,2536.4,2536.3,2.89253339]
[1748713388121,21.761,2536.4,2536.3,3.57213339]
[1748713388721,3.801,2536.4,2536.3,3.57213339]
[1748713389014,22.54915,2536.4,2536.3,2.78395339]
[1748713390622,22.74625,2536.4,2536.3,2.78395339]
[1748713390921,22.74625,2536.4,2536.3,2.7124]
[1748713391822,22.74625,2536.4,2536.3,2.0328]
[1748713394125,22.74625,2536.4,2536.3,0.07155339]
[1748713396528,22.94264908,2536.4,2536.3,0.07155339]
[1748713396732,22.94164521,2536.4,2536.3,0.07155339]
[1748713397123,22.94164501,2536.4,2536.3,0.07155339]
[1748713397318,22.94166466,2536.4,2536.3,0.07155339]
[1748713397631,22.74525,2536.4,2536.3,0.07155339]
[1748713397822,22.94166458,2536.4,2536.3,0.07155339]
[1748713398024,22.74525,2536.4,2536.3,0.07155339]
[1748713398529,22.94166381,2536.4,2536.3,0.07155339]
[1748713399029,22.74525,2536.4,2536.3,0.07155339]
[1748713399230,22.94103913,2536.4,2536.3,0.07155339]
[1748713399430,22.74525,2536.4,2536.3,0.07155339]
[1748713399625,22.9410513,2536.4,2536.3,0.07155339]
[1748713399819,1.19681118,2536.4,2536.3,0.85973339]
[1748713400028,4.99681118,2536.4,2536.3,0.85973339]
[1748713400230,23.74396118,2536.4,2536.3,0.85973339]
[1748713401231,22.74425,2536.4,2536.3,0.85973339]
[1748713401428,22.74425,2536.4,2536.3,0.07155339]
[1748713402230,0.78818,2536.3,2536.2,2.06649]
[1748713402430,0.78822,2536.2,2536.1,1.43053]
[1748713402934,22.74428,2536.4,2536.3,0.78818]
[1748713403127,22.74428,2536.4,2536.3,0.85973339]
[1748713403528,22.74428,2536.4,2536.3,0.07155339]
[1748713404536,4.78528,2536.4,2536.3,0.07155339]
[1748713404737,0.98528,2536.4,2536.3,0.85973339]
[1748713404938,22.74428,2536.4,2536.3,0.85973339]
[1748713405239,22.74428,2536.4,2536.3,0.78818]
[1748713405738,0.78818,2536.3,2536.2,3.996]
[1748713405931,22.74427,2536.4,2536.2,3.996]
[1748713406438,22.74427,2536.4,2536.3,0.78818]
[1748713406639,3.9971,2536.4,2536.3,0.78818]
[1748713408235,4.78525,2536.4,2536.2,3.996]
[1748713408737,3.9971,2536.4,2536.3,0.78818]
[1748713410537,0.1971,2536.4,2536.3,0.78818]
[1748713410838,3.9961,2536.4,2536.3,0.78818]
[1748713411436,0.1971,2536.4,2536.3,0.78818]
[1748713411637,3.9961,2536.4,2536.3,0.78818]
[1748713411838,0.1971,2536.4,2536.3,0.78818]
[1748713412036,3.9961,2536.4,2536.3,0.78818]
[1748713415239,0.1971,2536.4,2536.3,0.78818]
[1748713415737,0.1971,2536.4,2536.3,2.04408]
[1748713417136,3.799,2536.8,2536.4,0.78815]
[1748713417333,3.799,2537.1,2537.0,0.78797]
[1748713418143,3.799,2537.1,2537.0,2.70197]
[1748713419641,3.787,2537.1,2537.0,2.70197]
[1748713423741,3.2078,2538.4,2537.0,6.914]
[1748713423942,3.14342737,2538.2,2537.8,3.2078]
[1748713424244,2.35582737,2538.2,2537.9,1.8893]
[1748713424433,2.35582737,2538.2,2538.1,0.78763]
[1748713425244,3.14342737,2538.2,2538.0,0.78763]
[1748713425542,3.14342737,2538.2,2537.9,1.89521716]
[1748713425543,2.34382737,2538.2,2538.1,0.78763]
[1748713426240,3.01822737,2538.2,2538.1,0.78763]
[1748713426438,0.6744,2538.2,2538.1,0.78763]
[1748713427745,1.9708,2538.2,2538.1,0.78763]
[1748713428444,1.9708,2538.2,2538.0,0.78763]
[1748713429045,1.9708,2538.2,2538.1,0.78763]
[1748713430443,2.75841,2538.2,2538.0,0.78764]
[1748713430747,4.61764,2538.1,2537.9,0.00591716]
[1748713430949,2.71516,2538.0,2537.9,0.00591716]
[1748713431746,2.71516,2538.0,2537.9,0.79360716]
[1748713436256,1.9275,2538.0,2537.9,0.79360716]
[1748713436852,2.71516,2538.0,2537.9,0.79360716]
[1748713439459,19.9155,2538.0,2537.9,0.79360716]
[1748713440365,20.70316,2538.0,2537.9,0.79360716]
[1748713442267,2.71516,2538.0,2537.9,0.79360716]
[1748713442564,20.69616,2538.0,2537.9,0.00591716]
[1748713443668,23.90396,2538.0,2537.9,0.00591716]
[1748713443867,0.78781,2537.6,2537.5,0.78779]
[1748713444062,4.61681,2537.6,2537.5,0.78779]
[1748713445470,3.829,2537.6,2537.5,0.78779]
[1748713446071,4.61678,2537.6,2537.5,0.78779]
[1748713446665,0.78781,2537.5,2537.4,3.99562]
[1748713446968,2.12891,2537.5,2537.4,3.99562]
[1748713447162,2.32591,2537.5,2537.4,3.99562]
[1748713447565,2.32591,2537.5,2537.4,3.2078]
[1748713447965,2.32591,2537.5,2537.4,3.99564]
[1748713448366,2.32591,2537.5,2537.4,3.2078]
[1748713448573,0.78784,2537.4,2537.3,0.00591716]
[1748713448766,3.42574,2537.4,2537.3,0.00591716]
[1748713449671,3.42574,2537.4,2537.3,0.79378716]
[1748713449973,0.197,2537.5,2537.4,0.78784]
[1748713450167,22.004,2537.5,2537.4,0.78784]
[1748713450367,22.003,2537.5,2537.4,2.13934]
[1748713451575,22.79081,2537.5,2537.4,2.13934]
[1748713451775,0.78784,2537.4,2537.3,0.00591716]
[1748713451974,2.08574,2537.4,2537.3,0.00591716]
[1748713452774,2.71454,2537.4,2537.3,0.00591716]
[1748713457374,3.70449443,2537.4,2537.3,0.00591716]
[1748713457578,0.78797,2537.0,2536.9,0.6514]
[1748713457880,4.59797,2537.0,2536.9,1.9453]
[1748713458074,4.59797,2537.0,2536.4,3.2078]
[1748713458075,0.78812,2536.5,2536.4,3.2078]
[1748713458378,22.57212,2536.5,2536.4,3.8478]
[1748713458879,22.57212,2536.5,2536.4,5.1417]
[1748713459777,22.57212,2536.5,2536.4,5.92985]
[1748713459982,22.57212,2536.5,2536.4,2.72205]
[1748713460682,21.784,2536.5,2536.4,2.72205]
[1748713460873,21.784,2536.5,2536.4,2.79360339]
[1748713461078,22.57212,2536.5,2536.4,2.79360339]
[1748713461879,21.784,2536.5,2536.4,2.79360339]
[1748713462081,21.784,2536.5,2536.4,2.72205]
[1748713462784,22.57212,2536.5,2536.4,2.72205]
[1748713462987,22.57212,2536.5,2536.4,1.9339]
[1748713464185,22.57212,2536.5,2536.4,2.72205]
[1748713464381,22.57212,2536.5,2536.2,0.66501716]
[1748713464593,0.78816,2536.4,2536.2,2.66351716]
[1748713464886,17.968,2536.4,2536.3,2.10388]
[1748713465083,21.779,2536.4,2536.3,2.10388]
[1748713465283,3.811,2536.4,2536.3,2.10388]
[1748713465779,0.00591716,2536.7,2536.3,1.3157]
[1748713465780,0.79399716,2536.7,2536.3,1.3157]
[1748713465975,22.56509,2536.6,2536.5,0.78812]
[1748713466181,22.56509,2536.6,2536.5,2.11112]
[1748713466484,21.777,2536.6,2536.5,2.11112]
[1748713467779,22.56509,2536.6,2536.5,2.11112]
[1748713467974,21.777,2536.6,2536.5,2.11112]
[1748713468175,0.00591716,2536.7,2536.6,0.78809]
[1748713468386,21.78791716,2536.7,2536.6,2.12019]
[1748713470085,22.57597716,2536.7,2536.6,2.12019]
[1748713470389,21.78791716,2536.7,2536.6,2.12019]
[1748713470788,3.81691716,2536.7,2536.6,2.12019]
[1748713470981,21.98101716,2536.7,2536.6,2.12019]
[1748713475093,22.76910716,2536.7,2536.6,0.78809]
[1748713475287,23.40500716,2536.7,2536.6,0.78809]
[1748713477893,1.97024,2536.6,2536.2,0.00591716]
[1748713478198,0.78818,2536.3,2536.2,0.00591716]
[1748713478387,4.59918,2536.3,2536.2,0.00591716]
[1748713478793,4.59918,2536.3,2536.2,0.79413716]
[1748713479388,5.86318,2536.3,2536.2,0.79413716]
[1748713479996,5.86318,2536.3,2536.2,0.00591716]
[1748713480695,5.86318,2536.3,2536.2,0.79413716]
[1748713481290,5.86318,2536.3,2536.2,0.00591716]
[1748713483694,5.86318,2536.3,2536.2,0.79413716]
[1748713483893,0.78818,2536.3,2536.2,0.00591716]
[1748713484103,22.56218,2536.3,2536.2,0.00591716]
[1748713484796,22.56218,2536.3,2536.2,0.79409716]
[1748713485096,21.774,2536.3,2536.2,0.79409716]
[1748713485395,4.5405,2536.5,2536.2,0.00591716]
[1748713485396,3.2078,2536.5,2536.2,0.00591716]
[1748713485597,3.99592,2536.5,2536.4,0.78815]
[1748713485796,25.76292,2536.5,2536.4,0.78815]
[1748713485993,25.76292,2536.5,2536.4,2.09595]
[1748713486194,24.9748,2536.5,2536.4,2.09595]
[1748713486897,25.76292,2536.5,2536.4,2.09595]
[1748713487090,26.75509074,2536.5,2536.4,2.09595]
[1748713487286,1.187781,2536.5,2536.4,2.09595]
[1748713487590,4.79317074,2536.5,2536.4,2.09595]
[1748713489498,3.801,2536.5,2536.4,2.09595]
[1748713491600,4.58912,2536.5,2536.4,1.3078]
[1748713492000,0.78812,2536.5,2536.4,1.3078]
[1748713492194,22.56712,2536.5,2536.4,2.09595]
[1748713492394,22.56712,2536.5,2536.4,2.16750339]
[1748713494804,0.78812,2536.5,2536.4,2.16750339]
[1748713495009,22.56212,2536.5,2536.4,2.16750339]
[1748713496295,22.56212,2536.5,2536.4,0.85970339]
[1748713496499,0.78812,2536.5,2536.4,0.85970339]
[1748713496701,22.55812,2536.5,2536.4,0.85970339]
[1748713496902,23.17802,2536.5,2536.4,0.85970339]
[1748713497607,23.17802,2536.5,2536.4,0.07155339]
[1748713497906,23.17802,2536.5,2536.4,0.85970339]
[1748713498809,23.17802,2536.5,2536.4,0.07155339]
[1748713499314,23.17802,2536.5,2536.4,0.85970339]
[1748713499909,23.37512,2536.5,2536.4,0.85970339]
[1748713501404,23.37512,2536.5,2536.4,0.07155339]
[1748713502304,24.61662,2536.5,2536.4,0.85970339]
[1748713503906,25.60979044,2536.5,2536.4,0.07155339]
[1748713505111,25.80541767,2536.5,2536.4,0.07155339]
[1748713505314,25.60979044,2536.5,2536.4,0.07155339]
[1748713506118,25.60979044,2536.5,2536.4,0.85970339]
[1748713506428,6.85267044,2536.5,2536.4,0.85970339]
[1748713506618,25.59979044,2536.5,2536.4,0.85970339]
[1748713506818,25.59979044,2536.5,2536.4,0.07155339]
[1748713508028,28.80759044,2536.5,2536.4,0.07155339]
[1748713508221,29.00320387,2536.5,2536.4,0.07155339]
[1748713508524,28.80759044,2536.5,2536.4,0.07155339]
[1748713509218,29.00320219,2536.5,2536.4,0.07155339]
[1748713509414,28.80759044,2536.5,2536.4,0.07155339]
[1748713511014,29.00320962,2536.5,2536.4,0.07155339]
[1748713511221,28.80759044,2536.5,2536.4,0.07155339]
[1748713511521,35.34859044,2536.5,2536.4,0.07155339]
[1748713511725,28.80759044,2536.5,2536.4,0.07155339]
[1748713511924,29.00320883,2536.5,2536.4,0.07155339]
[1748713512130,28.80759044,2536.5,2536.4,0.07155339]
[1748713512722,0.78818,2536.3,2536.2,0.00591716]
[1748713512918,0.98377959,2536.3,2536.2,0.00591716]
[1748713513122,0.78818,2536.3,2536.2,0.00591716]
[1748713513326,3.09925044,2536.3,2536.2,0.00591716]
[1748713514530,0.99317044,2536.3,2536.2,0.79413716]
[1748713514831,18.95317044,2536.3,2536.2,0.79413716]
[1748713515030,19.74135044,2536.3,2536.2,0.79413716]
[1748713516829,23.54135044,2536.3,2536.2,0.79413716]
[1748713518532,23.54135044,2536.3,2536.2,0.00591716]
[1748713518733,23.54135044,2536.3,2536.2,0.79412716]
[1748713519122,23.54135044,2536.3,2536.2,0.00591716]
[1748713520130,24.84785044,2536.3,2536.2,0.00591716]
[1748713523734,24.84785044,2536.3,2536.2,0.07747055]
[1748713525136,25.04495044,2536.3,2536.2,0.07747055]
[1748713527837,25.24059315,2536.3,2536.2,0.00591716]
[1748713528031,25.04495044,2536.3,2536.2,0.00591716]
[1748713528934,25.24057735,2536.3,2536.2,0.07747055]
[1748713529240,25.04495044,2536.3,2536.2,0.07747055]
[1748713529635,25.24057292,2536.3,2536.2,0.07747055]
[1748713530142,25.04495044,2536.3,2536.2,0.07747055]
[1748713530743,25.24030036,2536.3,2536.2,0.07747055]
[1748713531741,30.04495044,2536.3,2536.2,0.07747055]
[1748713531944,0.78831,2535.9,2535.8,0.618]
[1748713532241,4.58831,2535.9,2535.8,0.618]
[1748713534146,0.78834,2535.8,2535.7,3.2078]
[1748713534348,0.78837,2535.7,2535.6,0.00591716]
[1748713536437,1.78128659,2535.7,2535.6,0.00591716]
[1748713538733,3.10048659,2535.7,2535.6,0.00591716]
[1748713541145,6.30828659,2535.7,2535.6,0.00591716]
[1748713541647,6.50333801,2535.7,2535.6,0.00591716]
[1748713541946,6.30828659,2535.7,2535.6,0.00591716]
[1748713543450,8.79008659,2535.7,2535.6,0.00591716]
[1748713543643,26.75408659,2535.7,2535.6,0.00591716]
[1748713543843,26.75408659,2535.7,2535.6,0.66101716]
[1748713544853,4.98908659,2535.7,2535.6,1.44941716]
[1748713545054,8.00171659,2535.7,2535.6,1.44941716]
[1748713545248,25.96571659,2535.7,2535.6,1.44941716]
[1748713545441,0.99291659,2535.7,2535.6,1.44941716]
[1748713545754,0.99291659,2535.7,2535.6,2.78681716]
[1748713545947,0.99291659,2535.7,2535.6,7.78681716]
[1748713546445,2.34528418,2536.2,2536.1,0.78825]
[1748713546646,2.34528418,2536.2,2536.1,3.99605]
[1748713546849,2.34528418,2536.2,2536.1,8.99605]
[1748713547643,0.1971,2536.3,2536.2,0.78821]
[1748713547851,0.1971,2536.3,2536.2,3.32121]
[1748713548040,0.1971,2536.3,2536.2,8.32121]
[1748713548546,0.1851,2536.3,2536.2,8.32121]
[1748713549848,6.15120134,2536.7,2536.6,0.78809]
[1748713550054,0.00591716,2536.7,2536.6,0.78809]
[1748713554256,0.00591716,2536.7,2536.4,4.4588]
[1748713554446,0.00591716,2536.7,2536.6,0.78809]
[1748713554650,22.55397716,2536.7,2536.6,0.78809]
[1748713555255,0.7881,2536.6,2536.5,0.78811]
[1748713555451,0.7881,2536.6,2536.5,1.3193]
[1748713556960,0.7881,2536.6,2536.5,2.10742]
[1748713559963,0.7881,2536.6,2536.5,1.3193]
[1748713560266,0.7881,2536.6,2536.5,2.10742]
[1748713560558,0.78812,2536.5,2536.4,3.99592]
[1748713560754,23.73609716,2536.7,2536.2,2.6174]
[1748713560957,0.78817,2536.4,2536.3,0.78818]
[1748713561457,0.78813,2536.5,2536.4,0.78812]
[1748713561659,0.78812,2536.5,2536.4,0.78812]
[1748713561859,22.54512,2536.5,2536.4,0.78812]
[1748713562664,0.78815,2536.4,2536.3,2.12356]
[1748713563161,0.78815,2536.4,2536.3,1.3354]
[1748713563367,21.757,2536.5,2536.0,3.99605]
[1748713563368,0.78824,2536.1,2536.0,3.99605]
[1748713563665,4.58724,2536.1,2536.0,5.27785]
[1748713563854,4.58724,2536.1,2536.0,4.4896]
[1748713564059,0.78834,2535.8,2535.7,0.78836]
[1748713564463,0.78831,2535.9,2535.8,0.7883]
[1748713564659,21.759,2535.9,2535.7,1.2818]
[1748713564857,21.759,2535.9,2535.8,0.78833]
[1748713565758,0.78825,2536.0,2535.9,0.78829]
[1748713565960,22.55525,2536.0,2535.9,0.78829]
[1748713566866,21.767,2536.0,2535.9,0.78829]
[1748713567266,22.55325,2536.0,2535.9,0.78829]
[1748713567866,21.765,2536.0,2535.9,0.78829]
[1748713568367,0.78826,2536.1,2536.0,0.78827]
[1748713568568,22.55026,2536.1,2536.0,0.78827]
[1748713568756,3.2078,2536.2,2536.1,0.78824]
[1748713568962,24.9698,2536.2,2536.1,0.78824]
[1748713570163,3.2078,2536.2,2536.1,2.10344]
[1748713570358,25.75801,2536.2,2536.1,2.10344]
[1748713570562,22.55021,2536.2,2536.1,2.10344]
[1748713571473,22.55021,2536.2,2536.1,1.3152]
[1748713571666,0.78824,2536.1,2536.0,1.47255]
[1748713572066,22.55023,2536.2,2536.1,0.78824]
[1748713573672,4.58723,2536.2,2536.1,0.78824]
[1748713573969,22.54723,2536.2,2536.1,0.78824]
[1748713575069,0.7883,2535.9,2535.7,0.78834]
[1748713575270,4.4492,2535.8,2535.7,0.78834]
[1748713575471,5.7116,2535.8,2535.7,0.78834]
[1748713578374,6.49993,2535.8,2535.7,0.78834]
[1748713578773,5.7116,2535.8,2535.7,0.78834]
[1748713579779,6.49993,2535.8,2535.7,0.78834]
[1748713581278,4.4492,2535.8,2535.7,0.78834]
[1748713581781,4.4492,2535.8,2535.7,2.08104]
[1748713582976,22.4102,2535.8,2535.7,2.08104]
[1748713583477,23.19853,2535.8,2535.7,2.08104]
[1748713585491,22.4102,2535.8,2535.7,2.08104]